bitfinex-derivatives/quotes_BTCF0:USTF0_20250117
["timestamp","ask_amount","ask_price","bid_price","bid_amount"]
[1737075152442,0.3628,100160.0,100150.0,0.20984342]
[1737075152638,0.3628,100160.0,100150.0,0.24234342]
[1737075153848,0.002,100160.0,100150.0,0.24234342]
[1737075156256,0.002,100160.0,100150.0,0.17948421]
[1737075156555,0.002,100160.0,100150.0,0.3592869]
[1737075157558,0.051922,100160.0,100150.0,0.3592869]
[1737075157749,0.412722,100160.0,100150.0,0.17948421]
[1737075160858,0.412722,100160.0,100150.0,0.14698421]
[1737075165754,0.42251243,100160.0,100150.0,0.14698421]
[1737075166152,0.42251243,100160.0,100150.0,0.11378421]
[1737075172467,0.48561243,100160.0,100150.0,0.11378421]
[1737075175554,0.444022,100160.0,100150.0,0.11378421]
[1737075176466,0.412722,100160.0,100150.0,0.11378421]
[1737075176675,0.412722,100160.0,100150.0,0.14528421]
[1737075181779,0.3628,100160.0,100150.0,0.20814342]
[1737075182167,0.3628,100160.0,100150.0,0.14528421]
[1737075183175,0.3628,100160.0,100150.0,0.20814342]
[1737075183476,0.3628,100160.0,100150.0,0.14528421]
[1737075183866,0.3628,100160.0,100150.0,0.20814342]
[1737075184578,0.3628,100160.0,100150.0,0.14528421]
[1737075188180,0.3628,100160.0,100150.0,0.17728421]
[1737075189273,0.6622888,100160.0,100150.0,0.17728421]
[1737075196973,0.7122108,100160.0,100150.0,0.17728421]
[1737075197874,0.7122108,100160.0,100150.0,0.14528421]
[1737075199671,0.412722,100160.0,100150.0,0.14528421]
[1737075201181,0.051922,100160.0,100150.0,0.14528421]
[1737075208395,0.051922,100160.0,100150.0,0.3250869]
[1737075212994,0.051922,100160.0,100150.0,0.14528421]
[1737075213897,0.412722,100160.0,100150.0,0.14528421]
[1737075219595,0.7415029,100160.0,100150.0,0.14528421]
[1737075220501,1.04070812,100160.0,100150.0,0.14528421]
[1737075225296,0.67990812,100160.0,100150.0,0.14528421]
[1737075227102,0.67990812,100160.0,100150.0,0.3250869]
[1737075228296,0.67990812,100160.0,100150.0,0.14528421]
[1737075230495,0.3807029,100160.0,100150.0,0.3250869]
[1737075234800,0.3807029,100160.0,100150.0,0.14528421]
[1737075234801,0.051922,100160.0,100150.0,0.14528421]
[1737075237706,0.051922,100160.0,100150.0,0.3250869]
[1737075238808,0.051922,100160.0,100150.0,0.14528421]
[1737075240610,0.002,100160.0,100150.0,0.14528421]
[1737075242017,0.3932,100170.0,100150.0,0.66879342]
[1737075242306,0.3932,100170.0,100160.0,0.17564042]
[1737075242307,0.69240522,100170.0,100160.0,0.17564042]
[1737075242605,0.69240522,100170.0,100160.0,0.20604042]
[1737075242908,0.74232222,100170.0,100160.0,0.14318121]
[1737075243210,0.69240522,100170.0,100160.0,0.14318121]
[1737075243609,0.69240522,100170.0,100160.0,0.14418121]
[1737075243911,0.69340522,100170.0,100160.0,0.20704042]
[1737075244303,0.74332222,100170.0,100160.0,0.11378121]
[1737075245403,0.74332222,100170.0,100160.0,0.2935839]
[1737075247209,0.74332222,100170.0,100160.0,0.30371249]
[1737075248118,0.69340522,100170.0,100160.0,0.3665717]
[1737075248814,0.33260522,100170.0,100160.0,0.7584717]
[1737075249615,0.0334,100170.0,100160.0,0.57866901]
[1737075250008,0.001,100170.0,100160.0,0.57866901]
[1737075255017,0.001,100170.0,100160.0,0.64152822]
[1737075255616,0.45521363,100190.0,100180.0,0.049912]
[1737075255820,0.45521363,100190.0,100180.0,0.17563042]
[1737075256123,0.44371,100190.0,100180.0,0.17563042]
[1737075256822,0.44971,100190.0,100180.0,0.17563042]
[1737075257727,0.3998,100190.0,100180.0,0.17563042]
[1737075257921,0.3998,100190.0,100180.0,0.20843042]
[1737075261231,0.449707,100190.0,100180.0,0.18550961]
[1737075263023,0.449707,100190.0,100180.0,0.1226504]
[1737075263219,0.449707,100190.0,100180.0,0.18550961]
[1737075264129,0.448707,100190.0,100180.0,0.18550961]
[1737075265322,0.445707,100190.0,100180.0,0.18550961]
[1737075267624,0.74491222,100190.0,100180.0,0.18550961]
[1737075268830,0.69500522,100190.0,100180.0,0.18550961]
[1737075269331,0.69500522,100190.0,100180.0,0.21620961]
[1737075270020,0.66200522,100190.0,100180.0,0.21620961]
[1737075273232,0.30120522,100190.0,100180.0,0.57700961]
[1737075273438,0.30120522,100190.0,100180.0,0.63986882]
[1737075273635,0.30120522,100190.0,100180.0,0.57700961]
[1737075275133,0.002,100190.0,100180.0,0.57700961]
[1737075276530,0.002,100190.0,100180.0,0.63986882]
[1737075276730,0.002,100190.0,100180.0,0.57700961]
[1737075278036,0.002,100190.0,100180.0,0.63986882]
[1737075278443,0.4426,100210.0,100200.0,0.049902]
[1737075278637,0.4426,100210.0,100200.0,0.17562042]
[1737075278638,0.0818,100210.0,100200.0,0.17562042]
[1737075279733,0.0878,100210.0,100200.0,0.17562042]
[1737075280530,0.0379,100210.0,100200.0,0.17562042]
[1737075287335,0.0379,100210.0,100200.0,0.20612042]
[1737075287531,0.0379,100210.0,100200.0,0.21631561]
[1737075288530,0.0379,100210.0,100200.0,0.57711561]
[1737075289038,0.006,100210.0,100200.0,0.57711561]
[1737075297149,0.006,100210.0,100200.0,0.21631561]
[1737075298754,0.006,100210.0,100200.0,0.57711561]
[1737075305963,0.055897,100210.0,100200.0,0.1229564]
[1737075306562,0.416697,100210.0,100200.0,0.18581561]
[1737075307658,0.055897,100210.0,100200.0,0.18581561]
[1737075307860,0.416697,100210.0,100200.0,0.18581561]
[1737075308162,0.416697,100210.0,100200.0,0.11276121]
[1737075308357,0.447297,100210.0,100200.0,0.11276121]
[1737075309659,0.447297,100210.0,100200.0,0.17562042]
[1737075310966,0.3974,100210.0,100200.0,0.17562042]
[1737075321066,0.006,100210.0,100200.0,0.17562042]
[1737075321269,0.006,100210.0,100200.0,0.20642042]
[1737075334587,0.3668,100210.0,100200.0,0.20642042]
[1737075334890,0.006,100210.0,100200.0,0.20642042]
[1737075335087,0.006,100210.0,100200.0,0.14356121]
[1737075335986,0.006,100210.0,100200.0,0.20642042]
[1737075336186,0.006,100210.0,100200.0,0.14356121]
[1737075337882,0.006,100210.0,100200.0,0.20642042]
[1737075338787,0.006,100210.0,100200.0,0.14356121]
[1737075338983,0.006,100210.0,100200.0,0.20642042]
[1737075346287,0.006,100210.0,100200.0,0.66047963]
[1737075346486,0.3608,100230.0,100210.0,0.049897]
[1737075346684,0.3608,100230.0,100220.0,0.23781042]
[1737075347186,0.47298211,100240.0,100230.0,0.049887]
[1737075347389,0.47298211,100240.0,100230.0,0.11274621]
[1737075348290,0.48593963,100240.0,100230.0,0.11274621]
[1737075349190,0.48793963,100240.0,100230.0,0.11274621]
[1737075349897,0.45763963,100240.0,100230.0,0.11274621]
[1737075350596,0.45463963,100240.0,100230.0,0.11274621]
[1737075350902,0.45663963,100240.0,100230.0,0.11274621]
[1737075351198,0.51949884,100240.0,100230.0,0.11274621]
[1737075351399,0.51949884,100240.0,100230.0,0.049887]
[1737075351599,0.51949884,100240.0,100230.0,0.11274621]
[1737075354001,0.45663963,100240.0,100230.0,0.11274621]
[1737075356022,0.51949884,100240.0,100230.0,0.11274621]
[1737075356200,0.45663963,100240.0,100230.0,0.11274621]
[1737075357399,0.45514252,100240.0,100230.0,0.11274621]
[1737075360609,0.3648,100240.0,100230.0,0.17560542]
[1737075360808,0.414682,100240.0,100230.0,0.11274621]
[1737075361195,0.412682,100240.0,100230.0,0.11274621]
[1737075361400,0.410682,100240.0,100230.0,0.11274621]
[1737075362210,0.72579535,100250.0,100240.0,0.049882]
[1737075362410,0.36499535,100250.0,100240.0,0.23940042]
[1737075362601,0.34843012,100250.0,100240.0,0.23940042]
[1737075362801,0.34843012,100250.0,100240.0,0.0322]
[1737075363103,0.77208933,100250.0,100240.0,0.14494121]
[1737075363308,0.41068,100250.0,100240.0,0.14494121]
[1737075363515,0.41068,100250.0,100240.0,0.20780042]
[1737075363901,0.41068,100250.0,100240.0,0.17584121]
[1737075364096,0.41068,100250.0,100240.0,0.14494121]
[1737075364301,0.049882,100240.0,100230.0,0.11274321]
[1737075364504,0.410682,100240.0,100230.0,0.11274321]
[1737075367419,0.410682,100240.0,100230.0,0.14550997]
[1737075369515,0.45114681,100240.0,100230.0,0.14550997]
[1737075374514,0.441082,100240.0,100230.0,0.14550997]
[1737075376612,0.3912,100240.0,100230.0,0.14550997]
[1737075376916,0.44388,100250.0,100230.0,0.14550997]
[1737075377119,0.44388,100250.0,100240.0,0.14550797]
[1737075379222,0.45413489,100250.0,100240.0,0.14550797]
[1737075379518,0.45413489,100250.0,100240.0,0.049882]
[1737075387217,0.54976086,100250.0,100240.0,0.049882]
[1737075387410,0.51689661,100250.0,100240.0,0.049882]
[1737075388528,0.81598321,100250.0,100240.0,0.049882]
[1737075394931,0.049882,100240.0,100230.0,0.16253072]
[1737075395133,0.443782,100240.0,100230.0,0.16253072]
[1737075396429,0.082982,100240.0,100230.0,0.16253072]
[1737075396734,0.443782,100240.0,100230.0,0.16253072]
[1737075399044,0.410682,100240.0,100230.0,0.22529244]
[1737075399336,0.410682,100240.0,100230.0,0.16253072]
[1737075399532,0.049882,100240.0,100230.0,0.16253072]
[1737075399730,0.42093389,100250.0,100240.0,0.049882]
[1737075399932,0.42093389,100250.0,100240.0,0.23650544]
[1737075400230,0.410679,100250.0,100240.0,0.23650544]
[1737075401039,0.410679,100250.0,100240.0,0.17374372]
[1737075401236,0.410679,100250.0,100240.0,0.23650544]
[1737075401735,0.410679,100250.0,100240.0,0.17374372]
[1737075402131,0.47344072,100250.0,100240.0,0.17374372]
[1737075402337,0.47344072,100250.0,100240.0,0.14324372]
[1737075402632,0.47344072,100250.0,100240.0,0.080482]
[1737075402939,0.47344072,100250.0,100240.0,0.14324372]
[1737075405638,0.410679,100250.0,100240.0,0.14324372]
[1737075409241,0.73975843,100250.0,100240.0,0.14324372]
[1737075411229,0.73975843,100250.0,100240.0,0.17464372]
[1737075412538,1.00889809,100250.0,100240.0,0.17464372]
[1737075419338,1.07165981,100250.0,100230.0,0.11264572]
[1737075419528,0.410682,100240.0,100230.0,0.11264572]
[1737075419936,0.57585602,100240.0,100230.0,0.11264572]
[1737075421143,0.410682,100240.0,100230.0,0.11264572]
[1737075421743,0.47344372,100240.0,100230.0,0.11264572]
[1737075421947,0.440882,100240.0,100230.0,0.11264572]
[1737075422431,0.50364372,100240.0,100230.0,0.11264572]
[1737075423942,0.440882,100240.0,100230.0,0.11264572]
[1737075424246,0.50364372,100240.0,100230.0,0.11264572]
[1737075424634,0.51356453,100240.0,100230.0,0.11264572]
[1737075425041,0.84264396,100240.0,100230.0,0.11264572]
[1737075425938,0.87514396,100240.0,100230.0,0.11264572]
[1737075426339,0.81238224,100240.0,100230.0,0.11264572]
[1737075427149,1.14408744,100240.0,100230.0,0.11264572]
[1737075427340,1.08132572,100240.0,100230.0,0.11264572]
[1737075429241,0.049887,100230.0,100220.0,0.12335869]
[1737075429450,0.410687,100230.0,100220.0,0.18612041]
[1737075431059,0.410687,100230.0,100220.0,0.24888213]
[1737075431251,0.410687,100230.0,100220.0,0.18612041]
[1737075431453,0.410687,100230.0,100220.0,0.24888213]
[1737075439154,0.410687,100230.0,100220.0,0.18612041]
[1737075439854,0.410687,100230.0,100220.0,0.24888213]
[1737075441861,0.410687,100230.0,100220.0,0.18612041]
[1737075443153,0.67963048,100230.0,100220.0,0.24888213]
[1737075444363,0.67963048,100230.0,100220.0,0.18612041]
[1737075444954,0.67963048,100230.0,100220.0,0.24888213]
[1737075445560,0.67963048,100230.0,100220.0,0.18612041]
[1737075448164,0.67963048,100230.0,100220.0,0.24888213]
[1737075448362,0.67963048,100230.0,100220.0,0.21678213]
[1737075448555,0.67963048,100230.0,100220.0,0.09125869]
[1737075448751,0.67963048,100230.0,100220.0,0.15402041]
[1737075453063,0.67963048,100230.0,100220.0,0.14384972]
[1737075453261,0.7423922,100230.0,100220.0,0.049888]
[1737075453460,0.049893,100220.0,100210.0,0.23104629]
[1737075453659,0.049898,100210.0,100200.0,0.50155272]
[1737075453858,0.47345972,100210.0,100200.0,0.56431444]
[1737075454160,0.47345972,100210.0,100200.0,0.32473901]
[1737075454552,0.410698,100210.0,100200.0,0.32473901]
[1737075454755,0.410698,100210.0,100200.0,0.38750073]
[1737075455156,0.47345972,100210.0,100200.0,0.23108129]
[1737075455569,0.50385972,100210.0,100200.0,0.11416144]
[1737075457258,0.441098,100210.0,100200.0,0.17692316]
[1737075457457,0.049898,100210.0,100200.0,0.17692316]
[1737075457661,0.410698,100210.0,100200.0,0.23902316]
[1737075458263,0.67964148,100210.0,100200.0,0.23902316]
[1737075460464,0.410698,100210.0,100200.0,0.23902316]
[1737075466275,1.06919952,100220.0,100200.0,0.35168788]
[1737075466469,0.70839952,100220.0,100210.0,0.11265972]
[1737075466675,0.65850552,100220.0,100210.0,0.11265972]
[1737075466873,0.62790552,100220.0,100210.0,0.17542144]
[1737075467062,0.62790552,100220.0,100210.0,0.53622144]
[1737075467468,0.29882609,100220.0,100210.0,0.53622144]
[1737075468373,0.29882609,100220.0,100210.0,0.11265972]
[1737075468583,0.460584,100230.0,100210.0,0.11265972]
[1737075468876,0.410691,100230.0,100220.0,0.11265472]
[1737075469965,0.47345272,100230.0,100220.0,0.049893]
[1737075470162,0.50535272,100230.0,100220.0,0.049893]
[1737075470370,0.442591,100230.0,100220.0,0.17541644]
[1737075471880,0.442591,100230.0,100220.0,0.11265472]
[1737075473678,0.473391,100230.0,100220.0,0.11265472]
[1737075479377,0.473391,100230.0,100220.0,0.17541644]
[1737075479879,0.473391,100230.0,100220.0,0.11265472]
[1737075481776,0.049894,100220.0,100210.0,0.049898]
[1737075482079,0.443594,100220.0,100210.0,0.11265972]
[1737075487187,0.45359796,100220.0,100210.0,0.11265972]
[1737075488591,0.09279796,100220.0,100210.0,0.11265972]
[1737075488883,0.45359796,100220.0,100210.0,0.11265972]
[1737075489885,0.51635968,100220.0,100210.0,0.11265972]
[1737075490087,0.049899,100210.0,100200.0,0.049899]
[1737075490390,0.475399,100210.0,100200.0,0.11266072]
[1737075491279,0.410699,100210.0,100200.0,0.11266072]
[1737075493993,0.47346072,100210.0,100200.0,0.11266072]
[1737075494194,0.410699,100210.0,100200.0,0.11266072]
[1737075494990,0.47346072,100210.0,100200.0,0.11266072]
[1737075495389,0.410699,100210.0,100200.0,0.11266072]
[1737075495896,0.47346072,100210.0,100200.0,0.11266072]
[1737075496891,0.410699,100210.0,100200.0,0.11266072]
[1737075505402,0.47346072,100210.0,100200.0,0.11266072]
[1737075508899,0.47346072,100210.0,100200.0,0.049899]
[1737075509405,0.47346072,100210.0,100200.0,0.11266072]
[1737075513309,0.47346072,100210.0,100200.0,0.049899]
[1737075518112,0.47346072,100210.0,100200.0,0.11266072]
[1737075519014,0.47346072,100210.0,100200.0,0.049899]
[1737075520909,0.410699,100210.0,100200.0,0.14516072]
[1737075521309,0.410699,100210.0,100200.0,0.17626072]
[1737075521310,0.67964248,100210.0,100200.0,0.17626072]
[1737075522511,0.410699,100210.0,100200.0,0.17626072]
[1737075525219,0.47346072,100210.0,100200.0,0.17626072]
[1737075526220,0.47346072,100210.0,100200.0,0.113499]
[1737075528417,0.47346072,100210.0,100200.0,0.17626072]
[1737075529513,0.47346072,100210.0,100200.0,0.113499]
[1737075531520,0.47346072,100210.0,100200.0,0.17626072]
[1737075532617,0.77228681,100210.0,100200.0,0.17626072]
[1737075532921,0.77228681,100210.0,100200.0,0.113499]
[1737075533322,1.04123029,100210.0,100200.0,0.113499]
[1737075534417,0.77228681,100210.0,100200.0,0.113499]
[1737075540020,0.77228681,100210.0,100200.0,0.082399]
[1737075543228,1.13308681,100210.0,100200.0,0.082399]
[1737075543435,0.83426072,100210.0,100200.0,0.082399]
[1737075546030,0.83426072,100210.0,100200.0,0.0325]
[1737075546421,0.83426072,100210.0,100190.0,0.12572309]
[1737075546422,0.049904,100200.0,100190.0,0.12572309]
[1737075546620,0.47346572,100200.0,100190.0,0.12572309]
[1737075546825,0.410704,100200.0,100190.0,0.12572309]
[1737075548431,0.460601,100210.0,100200.0,0.049904]
[1737075548736,0.460601,100210.0,100200.0,0.17746572]
[1737075549328,0.410699,100210.0,100200.0,0.17746572]
[1737075551829,0.410699,100210.0,100200.0,0.18754279]
[1737075554741,0.67964248,100210.0,100200.0,0.18754279]
[1737075555132,0.67964248,100210.0,100200.0,0.17746572]
[1737075556146,0.31884248,100210.0,100200.0,0.17746572]
[1737075556439,0.67964248,100210.0,100200.0,0.17746572]
[1737075558848,0.7424042,100210.0,100200.0,0.17746572]
[1737075560447,0.67964248,100210.0,100200.0,0.17746572]
[1737075564644,0.410699,100210.0,100200.0,0.17746572]
[1737075575166,0.3608,100210.0,100200.0,0.24022744]
[1737075575459,0.3608,100210.0,100200.0,0.27162744]
[1737075577760,0.410699,100210.0,100200.0,0.27162744]
[1737075580166,0.049899,100210.0,100200.0,0.27162744]
[1737075580367,0.410699,100210.0,100200.0,0.27162744]
[1737075581973,0.410699,100210.0,100200.0,0.20886572]
[1737075585473,0.410699,100210.0,100200.0,0.27162744]
[1737075587066,0.410699,100210.0,100200.0,0.20886572]
[1737075592275,0.410699,100210.0,100200.0,0.27162744]
[1737075593481,0.410699,100210.0,100200.0,0.20886572]
[1737075597886,0.410699,100210.0,100200.0,0.27162744]
[1737075598775,0.049899,100210.0,100200.0,0.27162744]
[1737075600379,0.410699,100210.0,100200.0,0.20886572]
[1737075600687,0.410699,100210.0,100200.0,0.27162744]
[1737075600979,0.443594,100220.0,100200.0,0.32153144]
[1737075601180,0.443594,100220.0,100210.0,0.17542244]
[1737075601181,0.3608,100220.0,100210.0,0.17542244]
[1737075601574,1.09346285,100230.0,100210.0,0.17542244]
[1737075601774,1.09346285,100230.0,100220.0,0.17541744]
[1737075601775,1.04357085,100230.0,100220.0,0.17541744]
[1737075602388,0.443589,100230.0,100220.0,0.17541744]
[1737075603985,0.45344163,100230.0,100220.0,0.17541744]
[1737075606184,0.443589,100230.0,100220.0,0.17541744]
[1737075606890,0.3937,100230.0,100220.0,0.17541744]
[1737075607093,0.66222298,100230.0,100220.0,0.24051744]
[1737075607981,0.3937,100230.0,100220.0,0.24051744]
[1737075609277,0.3937,100230.0,100220.0,0.25060912]
[1737075609489,0.0329,100230.0,100220.0,0.25060912]
[1737075610695,0.082789,100230.0,100220.0,0.1878474]
[1737075610991,0.443589,100230.0,100220.0,0.1878474]
[1737075612787,0.443589,100230.0,100220.0,0.1554474]
[1737075613987,0.50635072,100230.0,100220.0,0.049894]
[1737075614195,0.50635072,100230.0,100220.0,0.11265572]
[1737075618293,0.50635072,100230.0,100220.0,0.049894]
[1737075618898,0.50635072,100230.0,100220.0,0.11265572]
[1737075620898,0.443589,100230.0,100220.0,0.11265572]
[1737075621094,0.443589,100230.0,100220.0,0.17541744]
[1737075621691,0.443589,100230.0,100220.0,0.11265572]
[1737075625094,0.443589,100230.0,100220.0,0.14555572]
[1737075629397,0.3937,100230.0,100220.0,0.20831744]
[1737075629603,0.3937,100230.0,100220.0,0.23961744]
[1737075629927,0.3608,100230.0,100220.0,0.23961744]
[1737075630210,0.97756785,100240.0,100230.0,0.049889]
[1737075630410,0.97756785,100240.0,100230.0,0.11265072]
[1737075631407,0.73976543,100240.0,100230.0,0.11265072]
[1737075632097,0.68987943,100240.0,100230.0,0.11265072]
[1737075632304,0.85505895,100240.0,100230.0,0.11265072]
[1737075633309,1.25702344,100240.0,100230.0,0.11265072]
[1737075634909,1.30690744,100240.0,100230.0,0.11265072]
[1737075637918,1.25702344,100240.0,100230.0,0.11265072]
[1737075639617,1.03826028,100240.0,100230.0,0.11265072]
[1737075640011,0.98837628,100240.0,100230.0,0.11265072]
[1737075640216,0.98837628,100240.0,100230.0,0.18559051]
[1737075641823,0.62757628,100240.0,100230.0,0.54639051]
[1737075643121,0.29849685,100240.0,100230.0,0.54639051]
[1737075644417,0.680818,100260.0,100230.0,0.60915223]
[1737075644723,0.680818,100260.0,100250.0,0.17540244]
[1737075644724,0.41217084,100260.0,100250.0,0.17540244]
[1737075645216,0.41217084,100260.0,100250.0,0.11264072]
[1737075648019,0.36229684,100260.0,100250.0,0.11264072]
[1737075648428,0.36229684,100260.0,100250.0,0.17540244]
[1737075650427,0.36229684,100260.0,100250.0,0.18539284]
[1737075651123,0.3608,100260.0,100250.0,0.18539284]
[1737075652030,0.3916,100270.0,100250.0,0.54619284]
[1737075652216,0.0308,100270.0,100260.0,0.17539744]
[1737075652436,0.0308,100270.0,100260.0,0.20659744]
[1737075653929,0.3916,100270.0,100260.0,0.20659744]
[1737075654131,0.0308,100270.0,100260.0,0.20659744]
[1737075659943,0.0308,100270.0,100260.0,0.30155916]
[1737075660146,0.65889846,100280.0,100260.0,0.76210516]
[1737075660341,0.62689846,100280.0,100270.0,0.17539244]
[1737075660853,0.62689846,100280.0,100270.0,0.53619244]
[1737075662335,0.62689846,100280.0,100270.0,0.59895416]
[1737075662546,0.0314,100290.0,100280.0,0.049864]
[1737075662736,0.0314,100290.0,100280.0,0.66074916]
[1737075663655,0.0314,100290.0,100280.0,0.59798744]
[1737075666940,0.0314,100290.0,100280.0,0.60788191]
[1737075672454,0.0314,100290.0,100280.0,0.24708191]
[1737075673548,0.3922,100290.0,100280.0,0.24708191]
[1737075673751,0.0314,100290.0,100280.0,0.24708191]
[1737075675354,0.3922,100290.0,100280.0,0.24708191]
[1737075675666,0.50482072,100290.0,100280.0,0.049864]
[1737075676452,0.50482072,100290.0,100280.0,0.11262572]
[1737075678063,0.50482072,100290.0,100280.0,0.049864]
[1737075678263,0.50482072,100290.0,100280.0,0.11262572]
[1737075678565,0.50482072,100290.0,100280.0,0.049864]
[1737075679151,0.11262772,100280.0,100270.0,0.04987]
[1737075679350,0.474566,100280.0,100270.0,0.04987]
[1737075682256,0.57013741,100280.0,100270.0,0.04987]
[1737075684069,0.81995285,100280.0,100270.0,0.04987]
[1737075687568,0.049872,100270.0,100260.0,0.049873]
[1737075687863,0.049874,100260.0,100250.0,0.081678]
[1737075688162,0.049879,100250.0,100240.0,0.05137725]
[1737075688361,0.443479,100250.0,100240.0,0.05137725]
[1737075688773,0.443479,100250.0,100240.0,0.14694866]
[1737075689571,0.3936,100250.0,100240.0,0.14694866]
[1737075689772,0.3936,100250.0,100240.0,0.17944866]
[1737075693670,0.443479,100250.0,100240.0,0.17944866]
[1737075697673,0.443479,100250.0,100240.0,0.21084866]
[1737075701582,0.443479,100250.0,100240.0,0.17801686]
[1737075705585,0.3608,100250.0,100240.0,0.17801686]
[1737075705776,0.410679,100250.0,100240.0,0.27205647]
[1737075706185,0.3608,100250.0,100240.0,0.27205647]
[1737075707279,0.410675,100260.0,100240.0,0.27205647]
[1737075707478,0.410675,100260.0,100250.0,0.11261861]
[1737075710389,0.410677,100260.0,100250.0,0.11261861]
[1737075712586,0.049877,100260.0,100250.0,0.11261861]
[1737075712794,0.410677,100260.0,100250.0,0.11261861]
[1737075716490,0.410677,100260.0,100250.0,0.12285992]
[1737075717786,0.411677,100260.0,100250.0,0.12685992]
[1737075724396,0.411677,100260.0,100250.0,0.11661861]
[1737075726293,0.3618,100260.0,100250.0,0.11661861]
[1737075726603,0.001,100260.0,100250.0,0.17935822]
[1737075728391,0.001,100260.0,100250.0,0.54015822]
[1737075728796,0.001,100260.0,100250.0,0.17935822]
[1737075729097,0.001,100260.0,100250.0,0.54015822]
[1737075729289,0.001,100260.0,100250.0,0.17935822]
[1737075729891,0.3618,100260.0,100250.0,0.11661861]
[1737075730088,0.411674,100260.0,100250.0,0.11661861]
[1737075730798,0.47441361,100260.0,100250.0,0.11661861]
[1737075733394,0.47441361,100260.0,100250.0,0.053879]
[1737075737606,0.48433653,100260.0,100250.0,0.053879]
[1737075740618,0.48433653,100260.0,100250.0,0.11661861]
[1737075743328,0.48433653,100260.0,100250.0,0.053879]
[1737075744014,0.81065601,100260.0,100250.0,0.053879]
[1737075744625,0.81065601,100260.0,100250.0,0.11661861]
[1737075746615,0.81065601,100260.0,100250.0,0.053879]
[1737075747019,0.81065601,100260.0,100250.0,0.11661861]
[1737075747426,0.7479164,100260.0,100250.0,0.11661861]
[1737075747617,0.81065601,100260.0,100250.0,0.11661861]
[1737075750217,0.73799348,100260.0,100250.0,0.11661861]
[1737075758926,0.80073309,100260.0,100250.0,0.053879]
[1737075759830,0.77106768,100260.0,100250.0,0.053879]
[1737075761227,0.77106768,100260.0,100250.0,0.11661861]
[1737075761630,0.77106768,100260.0,100250.0,0.053879]
[1737075765330,1.13186768,100260.0,100250.0,0.053879]
[1737075766531,1.06912807,100260.0,100250.0,0.053879]
[1737075770141,0.772474,100260.0,100250.0,0.053879]
[1737075775739,1.09879348,100260.0,100250.0,0.053879]
[1737075780049,1.09879348,100260.0,100250.0,0.11661861]
[1737075780642,0.68811948,100260.0,100250.0,0.17935822]
[1737075780848,0.68811948,100260.0,100250.0,0.21145822]
[1737075781546,0.68811948,100260.0,100250.0,0.14871861]
[1737075782039,0.001,100260.0,100250.0,0.32736039]
[1737075783448,0.001,100260.0,100250.0,0.3374102]
[1737075785242,0.001,100260.0,100250.0,0.15876842]
[1737075786252,0.001,100260.0,100250.0,0.22150803]
[1737075794263,0.001,100260.0,100250.0,0.58230803]
[1737075800168,0.001,100260.0,100250.0,0.22150803]
[1737075804167,0.001,100260.0,100250.0,0.15876842]
[1737075804368,0.001,100260.0,100250.0,0.12666842]
[1737075804569,0.3924,100260.0,100250.0,0.12666842]
[1737075813569,0.0316,100260.0,100250.0,0.12666842]
[1737075815178,0.0316,100260.0,100250.0,0.18940803]
[1737075815475,0.0316,100260.0,100250.0,0.12666842]
[1737075815777,0.0316,100260.0,100250.0,0.18940803]
[1737075815967,0.0316,100260.0,100250.0,0.12666842]
[1737075816476,0.0316,100260.0,100250.0,0.18940803]
[1737075816978,0.0316,100260.0,100250.0,0.12666842]
[1737075820571,0.001,100260.0,100250.0,0.18940803]
[1737075820771,0.001,100260.0,100250.0,0.12666842]
[1737075823784,0.001,100260.0,100250.0,0.55020803]
[1737075824171,0.001,100260.0,100250.0,0.58200803]
[1737075824882,0.001,100260.0,100250.0,0.76064981]
[1737075825776,0.001,100260.0,100250.0,0.6979102]
[1737075826391,0.001,100260.0,100250.0,0.76064981]
[1737075826574,0.001,100260.0,100250.0,0.6979102]
[1737075826879,0.001,100260.0,100250.0,0.76064981]
[1737075831782,0.001,100260.0,100250.0,0.58200803]
[1737075840196,0.001,100260.0,100250.0,0.76064981]
[1737075841586,0.29665407,100270.0,100260.0,0.049874]
[1737075841788,0.29665407,100270.0,100260.0,0.60195322]
[1737075841987,0.29665407,100270.0,100260.0,0.24115322]
[1737075842996,0.29665407,100270.0,100260.0,0.24215322]
[1737075845397,0.3931,100280.0,100270.0,0.049869]
[1737075845594,0.53750361,100280.0,100270.0,0.11260861]
[1737075846197,0.474764,100280.0,100270.0,0.11260861]
[1737075847201,0.476764,100280.0,100270.0,0.11260861]
[1737075859010,0.476764,100280.0,100270.0,0.049869]
[1737075859011,0.53950361,100280.0,100270.0,0.049869]
[1737075859201,0.476764,100280.0,100270.0,0.049869]
[1737075859402,0.476764,100280.0,100270.0,0.11260861]
[1737075859702,0.476764,100280.0,100270.0,0.049869]
[1737075859703,0.53950361,100280.0,100270.0,0.049869]
[1737075860507,0.65210722,100280.0,100260.0,0.049874]
[1737075860705,0.50630861,100270.0,100260.0,0.049874]
[1737075861411,0.50630861,100270.0,100260.0,0.11261361]
[1737075861412,0.443569,100270.0,100260.0,0.11261361]
[1737075862109,0.50630861,100270.0,100260.0,0.11261361]
[1737075863115,0.50630861,100270.0,100260.0,0.11361361]
[1737075866410,0.443569,100270.0,100260.0,0.11361361]
[1737075866711,0.74022307,100270.0,100260.0,0.11361361]
[1737075867012,0.75047327,100270.0,100260.0,0.11361361]
[1737075871405,0.71757327,100270.0,100260.0,0.11361361]
[1737075871602,0.71757327,100270.0,100260.0,0.14511361]
[1737075872008,0.70732307,100270.0,100260.0,0.20785322]
[1737075872206,0.65745407,100270.0,100260.0,0.24055322]
[1737075872411,0.65745407,100270.0,100260.0,0.17781361]
[1737075872616,0.70732307,100270.0,100260.0,0.17781361]
[1737075873008,0.77006268,100270.0,100260.0,0.11361361]
[1737075873211,0.77006268,100270.0,100260.0,0.050874]
[1737075873412,0.80266268,100270.0,100260.0,0.050874]
[1737075873722,0.83376268,100270.0,100260.0,0.050874]
[1737075874213,0.83376268,100270.0,100260.0,0.001]
[1737075874418,0.049874,100260.0,100250.0,0.22851578]
[1737075874610,0.56705322,100260.0,100250.0,0.049874]
[1737075875409,0.56805322,100260.0,100250.0,0.054874]
[1737075880918,0.56805322,100260.0,100250.0,0.005]
[1737075881320,0.56805322,100260.0,100250.0,0.054879]
[1737075881823,0.049879,100250.0,100240.0,0.081381]
[1737075882019,0.47341861,100250.0,100240.0,0.14412061]
[1737075882821,0.47341861,100250.0,100240.0,0.081381]
[1737075883018,0.47441861,100250.0,100240.0,0.11662061]
[1737075883215,0.47441861,100250.0,100240.0,0.053881]